bitfinex/quotes_SOLUSD_20250817
["timestamp","ask_amount","ask_price","bid_price","bid_amount"]
[1755391260716,7.45060674,188.84,188.83,3.27551312]
[1755391261306,7.45060674,188.84,188.83,9.0612818]
[1755391261529,0.06,188.85,188.83,9.0612818]
[1755391261830,0.06,188.85,188.84,3.24551312]
[1755391262422,0.06,188.85,188.84,8.54100136]
[1755391264435,0.06,188.85,188.84,88.44100136]
[1755391266221,0.06,188.85,188.84,120.22551312]
[1755391267411,0.06,188.85,188.84,125.52100136]
[1755391267717,0.06,188.85,188.84,141.11721693]
[1755391268034,0.06,188.87,188.86,46.40114302]
[1755391268335,0.06,188.87,188.86,90.501662]
[1755391268633,0.06,188.87,188.86,90.991662]
[1755391268807,0.06,188.87,188.86,93.112609]
[1755391270746,0.06,188.89,188.86,93.112609]
[1755391270944,0.06,188.89,188.88,29.24551312]
[1755391271134,0.06,188.89,188.88,66.32551312]
[1755391271339,0.06,188.89,188.88,66.85494979]
[1755391271641,0.06,188.89,188.88,82.45116536]
[1755391271835,0.06,188.89,188.88,89.86636615]
[1755391272048,0.06,188.89,188.88,169.76636615]
[1755391272348,0.06,188.91,188.89,15.10621557]
[1755391272526,0.06,188.92,188.91,44.35172869]
[1755391272724,0.06,188.92,188.91,124.25172869]
[1755391272947,0.06,188.92,188.91,44.35172869]
[1755391273119,0.06,188.92,188.91,45.37108129]
[1755391273320,0.06,188.92,188.91,44.35172869]
[1755391274443,0.06,188.92,188.91,49.6452547]
[1755391274941,0.06,188.92,188.91,50.1352547]
[1755391275757,0.06,188.92,188.91,49.6452547]
[1755391276746,0.06,188.92,188.91,50.1352547]
[1755391277154,0.06,188.92,188.91,49.6452547]
[1755391278144,0.06,188.92,188.91,51.7657517]
[1755391279442,0.06,188.92,188.91,52.2557517]
[1755391280758,0.06,188.92,188.91,52.7851043]
[1755391281756,0.06,188.96,188.92,15.10621557]
[1755391282057,0.77,188.96,188.95,3.24551312]
[1755391282244,0.77,188.96,188.95,40.30551312]
[1755391282943,0.77,188.96,188.95,45.59791851]
[1755391285151,0.77,188.96,188.95,125.49791851]
[1755391293948,0.77,188.96,188.95,120.20551312]
[1755391295151,0.77,188.96,188.95,125.49791851]
[1755391295871,0.06,188.96,188.95,125.49791851]
[1755391301661,0.77,188.96,188.95,125.49791851]
[1755391302985,0.06,188.96,188.95,125.49791851]
[1755391303680,0.06,188.96,188.95,130.79031861]
[1755391306984,0.76,188.96,188.95,130.79031861]
[1755391308496,0.76,188.96,188.95,127.54480549]
[1755391308787,0.76,188.96,188.95,130.77031861]
[1755391310859,0.76,188.96,188.95,83.14551312]
[1755391311073,0.76,188.96,188.95,116.94]
[1755391311379,0.76,188.96,188.95,79.9]
[1755391312160,0.76,188.96,188.95,83.14551312]
[1755391313589,0.76,188.96,188.95,79.9]
[1755391313777,6.05212531,188.96,188.95,79.9]
[1755391313959,9.58519718,188.96,188.95,79.9]
[1755391314473,16.75750475,188.96,188.95,79.9]
[1755391314690,16.75750475,188.96,188.92,0.03]
[1755391314894,8.15986632,188.95,188.92,0.03]
[1755391315092,7.45986632,188.94,188.92,0.03]
[1755391315294,7.45986632,188.93,188.92,0.03]
[1755391315686,8.15986632,188.93,188.92,0.03]
[1755391318479,4.62679445,188.93,188.92,0.03]
[1755391318894,16.69912395,188.93,188.92,0.03]
[1755391319094,16.69912395,188.93,188.9,0.03]
[1755391319294,3.24551312,188.91,188.9,0.03]
[1755391319599,12.7541712,188.91,188.9,0.03]
[1755391319898,13.4541712,188.91,188.9,0.03]
[1755391320101,13.45095599,188.91,188.9,0.03]
[1755391325286,0.52887666,188.95,188.9,3.27551312]
[1755391325287,0.7,188.93,188.9,3.27551312]
[1755391325490,0.7,188.95,188.92,3.24551312]
[1755391325685,5.35217602,188.96,188.93,3.24551312]
[1755391326002,0.7,188.94,188.93,3.24551312]
[1755391327278,0.7,188.94,188.92,3.24551312]
[1755391327478,6.05217602,188.96,188.92,3.24551312]
[1755391327792,7.44158377,188.95,188.92,3.24551312]
[1755391327992,0.7,188.94,188.92,3.24551312]
[1755391332390,3.52465894,188.95,188.93,3.24551312]
[1755391332603,0.06,188.96,188.94,3.76551312]
[1755391332909,0.06,188.96,188.95,3.24551312]
[1755391335116,0.06,188.96,188.95,3.76551312]
[1755391335780,0.06,188.96,188.95,9.05791851]
[1755391335985,0.06,188.96,188.95,50.16413408]
[1755391341414,0.06,188.96,188.95,130.06413408]
[1755391342414,0.06,188.96,188.95,114.43791851]
[1755391342713,0.76,188.96,188.95,151.47791851]
[1755391342891,0.06,188.96,188.95,151.47791851]
[1755391343303,0.76,188.96,188.95,125.47791851]
[1755391343919,0.06,188.96,188.95,125.47791851]
[1755391345290,0.06,188.96,188.95,122.23240539]
[1755391345511,0.06,188.96,188.95,125.47791851]
[1755391345917,0.06,188.96,188.95,141.10413408]
[1755391346136,0.06,188.98,188.97,41.10621557]
[1755391346331,0.06,188.98,188.97,81.39172869]
[1755391346610,0.06,188.98,188.97,81.91172869]
[1755391346925,3.58113455,189.04,188.97,81.91172869]
[1755391346926,0.06,189.04,189.01,41.10621557]
[1755391347137,0.06,189.04,189.01,81.39172869]
[1755391347441,0.06,189.04,189.01,87.20245404]
[1755391347731,0.06,189.04,189.01,89.32182804]
[1755391348414,0.06,189.04,189.01,87.20245404]
[1755391349425,0.06,189.04,189.01,87.73152657]
[1755391349739,0.06,189.04,189.01,87.21152657]
[1755391350727,0.06,189.04,189.01,86.68245404]
[1755391351723,0.76,189.04,189.01,86.68245404]
[1755391352540,0.76,189.02,189.01,71.57623847]
[1755391354040,0.76,189.02,189.01,34.53623847]
[1755391354244,0.76,189.02,189.01,71.55623847]
[1755391355221,0.76,189.02,189.01,40.26551312]
[1755391356140,0.76,189.02,189.01,120.16551312]
[1755391356321,0.76,189.02,189.01,79.9]
[1755391356906,0.76,189.02,189.01,83.14551312]
[1755391357834,0.76,189.02,189.01,79.9]
[1755391358038,0.76,189.02,189.0,40.26551312]
[1755391358412,0.76,189.02,189.0,40.29551312]
[1755391358926,0.76,189.02,189.01,3.24551312]
[1755391359239,0.06,189.02,189.01,3.24551312]
[1755391359925,0.76,189.02,189.0,0.03]
[1755391360121,6.05051268,189.02,189.0,0.03]
[1755391360322,9.2960258,189.02,189.0,0.03]
[1755391360523,0.7,189.01,189.0,0.03]
[1755391360920,5.99072535,189.01,189.0,0.03]
[1755391361518,0.7,189.01,189.0,0.03]
[1755391364436,0.06,189.02,189.0,3.27551312]
[1755391364635,0.06,189.02,189.01,40.78551312]
[1755391364942,0.06,189.02,189.01,45.55623847]
[1755391365350,0.06,189.02,189.01,125.45623847]
[1755391365652,0.73,189.02,189.0,0.03]
[1755391368930,0.06,189.02,189.01,3.24551312]
[1755391369139,0.73,189.02,189.0,40.33551312]
[1755391369635,0.73,189.02,189.0,37.09]
[1755391370034,0.67,189.01,189.0,37.09]
[1755391370233,0.67,189.01,189.0,0.03]
[1755391370638,7.95990058,189.01,189.0,0.03]
[1755391370858,4.71438746,189.01,189.0,0.03]
[1755391371165,4.1855108,189.01,189.0,0.03]
[1755391372358,8.09581849,189.01,189.0,0.03]
[1755391373539,8.09995596,189.01,189.0,0.03]
[1755391373746,13.39068131,189.01,189.0,0.03]
[1755391374258,13.39120845,189.01,189.0,0.03]
[1755391375257,16.63672157,189.01,189.0,0.03]
[1755391376342,13.39120845,189.01,189.0,0.03]
[1755391377735,13.39566427,189.01,189.0,0.03]
[1755391378361,17.17005405,189.01,189.0,0.03]
[1755391383976,13.92454093,189.01,189.0,0.03]
[1755391384270,13.39566427,189.01,189.0,0.03]
[1755391385571,16.64117739,189.01,189.0,0.03]
[1755391385770,13.12369829,189.01,189.0,0.03]
[1755391386075,16.64946021,189.01,189.0,0.03]
[1755391390584,7.44322174,189.01,189.0,0.03]
[1755391391082,8.11322174,189.01,189.0,0.03]
[1755391391282,8.17322174,189.01,189.0,0.03]
[1755391391860,13.46394709,189.01,189.0,0.03]
[1755391395365,16.70946021,189.01,189.0,0.03]
[1755391396079,13.46394709,189.01,189.0,0.03]
[1755391396384,16.70946021,189.01,189.0,0.03]
[1755391396591,13.46394709,189.01,189.0,0.03]
[1755391397394,8.17322174,189.01,189.0,0.03]
[1755391398990,13.46394709,189.01,189.0,0.03]
[1755391403072,9.54648727,189.01,189.0,0.03]
[1755391403402,13.47296208,189.01,189.0,0.03]
[1755391403898,13.47307466,189.01,189.0,0.03]
[1755391405198,15.54449545,189.01,189.0,0.03]
[1755391409575,19.95169785,189.01,189.0,0.03]
[1755391410484,15.54449545,189.01,188.98,0.03]
[1755391410682,2.07142079,188.99,188.98,0.03]
[1755391410877,14.81505535,188.99,188.98,0.03]
[1755391411081,15.51505535,188.99,188.98,0.03]
[1755391411281,19.93322537,188.99,188.98,0.03]
[1755391412278,11.58846796,188.99,188.98,0.03]
[1755391412601,15.51588601,188.99,188.98,0.03]
[1755391413080,30.62210158,188.99,188.98,0.03]
[1755391415269,26.0,188.97,188.96,0.03]
[1755391415598,92.61593773,188.97,188.96,0.03]
[1755391416004,93.31593773,188.97,188.96,0.03]
[1755391416603,88.89969299,188.97,188.96,0.03]
[1755391417180,94.19153825,188.97,188.96,0.03]
[1755391418295,98.6032558,188.97,188.96,0.03]
[1755391419376,94.19153825,188.97,188.96,0.03]
[1755391420301,98.6009227,188.97,188.96,0.03]
[1755391424815,98.6009227,188.97,188.96,1e-08]
[1755391424998,96.31316025,188.97,188.96,1e-08]
[1755391425995,70.31316025,188.97,188.96,1e-08]
[1755391426307,41.10621557,188.95,188.94,0.03]
[1755391426514,88.19969299,188.95,188.94,0.03]
[1755391426681,88.86969299,188.95,188.94,0.03]
[1755391427910,94.16209838,188.95,188.94,0.03]
[1755391435617,90.23468033,188.95,188.94,0.03]
[1755391435914,94.14658016,188.95,188.94,0.03]
[1755391446115,94.14715948,188.95,188.94,0.03]
[1755391447952,54.36573869,188.95,188.94,0.03]
[1755391448124,78.37094391,188.95,188.94,0.03]
[1755391448537,94.14715948,188.95,188.94,0.03]
[1755391449535,90.23468033,188.95,188.94,0.03]
[1755391449705,94.14987123,188.95,188.94,0.03]
[1755391453137,98.55445498,188.95,188.94,0.03]
[1755391455606,97.89249935,188.95,188.94,0.03]
[1755391456326,93.4879156,188.95,188.92,0.55]
[1755391456521,19.228333,188.94,188.92,0.03]
[1755391456742,11.77933581,188.94,188.93,0.52]
[1755391457038,56.27604667,188.94,188.93,0.52]
[1755391457242,51.86089337,188.94,188.93,0.52]
[1755391458217,51.86089337,188.94,188.92,0.55]
[1755391458419,7.45671086,188.93,188.92,0.55]
[1755391458624,7.98793522,188.93,188.92,0.55]
[1755391460431,13.28090086,188.93,188.92,0.55]
[1755391461453,15.35232165,188.93,188.92,0.03]
[1755391461645,16.07232165,188.93,188.92,0.03]
[1755391462428,20.48747495,188.93,188.92,0.03]
[1755391463144,18.41605416,188.93,188.92,0.03]
[1755391463345,16.07232165,188.93,188.92,0.03]
[1755391463550,20.48747495,188.93,188.92,0.03]
[1755391464256,19.76747495,188.93,188.92,0.03]
[1755391464438,15.35232165,188.93,188.92,0.03]
[1755391465243,13.28090086,188.93,188.92,0.03]
[1755391465440,15.35232165,188.93,188.92,0.03]
[1755391466629,20.48747495,188.93,188.92,0.03]
[1755391468353,35.59369052,188.93,188.92,0.03]
[1755391476232,20.48747495,188.93,188.92,0.03]
[1755391476534,7.45905856,188.93,188.92,2.62142079]
[1755391481841,3.53212309,188.93,188.92,2.62142079]
[1755391482070,7.45851008,188.93,188.92,2.62142079]
[1755391482365,7.45859616,188.93,188.92,2.62142079]
[1755391486970,3.53212309,188.93,188.92,7.9146666]
[1755391487558,0.06,188.94,188.92,7.9146666]
[1755391487757,0.06,188.94,188.93,2.07142079]
[1755391487964,3.5924253,188.94,188.93,2.59142079]
[1755391489369,3.5924253,188.94,188.93,2.07142079]
[1755391492077,4.2924253,188.94,188.93,2.07142079]
[1755391492373,4.2924253,188.94,188.92,0.03]
[1755391492374,14.03778969,188.94,188.92,0.03]
[1755391492672,4.2324253,188.93,188.92,0.03]
[1755391493066,8.15614356,188.93,188.92,0.03]
[1755391493261,45.15614356,188.93,188.92,0.03]
[1755391493969,50.4491092,188.93,188.92,0.03]
[1755391496177,44.45614356,188.93,188.92,0.03]
[1755391496757,45.15614356,188.93,188.92,0.03]
[1755391499580,45.15650522,188.93,188.92,0.03]
[1755391501575,45.15642211,188.93,188.92,0.03]
[1755391503469,50.44938775,188.93,188.92,0.03]
[1755391513279,50.45155857,188.93,188.92,0.03]
[1755391513792,52.52297936,188.93,188.92,0.03]
[1755391514496,72.04434823,188.93,188.92,0.03]
[1755391515168,43.17763636,188.91,188.9,0.03]
[1755391515492,88.16510595,188.91,188.9,0.03]
[1755391515703,88.83510595,188.91,188.9,0.03]
[1755391515997,98.54426536,188.91,188.9,0.03]
[1755391516198,98.54289747,188.91,188.9,0.03]
[1755391516403,94.12726407,188.91,188.9,0.03]
[1755391517170,98.54289747,188.91,188.9,0.03]
[1755391517485,15.10621557,188.9,188.88,0.03]
[1755391517683,15.10621557,188.88,188.87,0.03]
[1755391517885,46.40086268,188.87,188.86,0.03]
[1755391518088,17.17763636,188.86,188.83,0.03]
[1755391518285,25.3048614,188.86,188.83,0.03]
[1755391519082,30.59978885,188.86,188.83,0.03]
[1755391521875,26.67498911,188.86,188.83,0.03]
[1755391522076,30.58656907,188.86,188.83,0.03]
[1755391527194,27.05414377,188.86,188.83,0.03]
[1755391527388,30.56640417,188.86,188.83,0.03]
[1755391531183,41.10621557,188.84,188.83,0.03]
[1755391531393,88.13035338,188.84,188.83,0.03]
[1755391531605,88.80035338,188.84,188.83,0.03]
[1755391532191,94.09584162,188.84,188.83,0.03]
[1755391549641,26.0,188.81,188.8,0.03]
[1755391549806,73.00413781,188.81,188.8,0.03]
[1755391550013,73.71413781,188.81,188.8,0.03]
[1755391550503,15.10621557,188.8,188.79,0.03]
[1755391550829,25.31147672,188.8,188.79,0.03]
[1755391551206,25.29788326,188.8,188.79,0.03]
[1755391551823,23.22646247,188.8,188.79,0.03]
[1755391552022,50.58788326,188.8,188.79,0.03]
[1755391552418,51.29788326,188.8,188.79,0.03]
[1755391552732,56.59449342,188.8,188.79,0.03]
[1755391556523,53.08223302,188.8,188.79,0.03]
[1755391556724,56.59569857,188.8,188.79,0.03]
[1755391557128,56.6032748,188.8,188.79,0.03]
[1755391557643,56.60308094,188.8,188.79,0.03]
[1755391560628,33.42494411,188.8,188.79,0.55]
[1755391560844,44.40494411,188.8,188.79,2.62142079]
[1755391561023,7.42494411,188.8,188.79,2.62142079]
[1755391561223,3.91147856,188.8,188.79,2.62142079]
[1755391561427,36.98,188.83,188.79,2.62142079]
[1755391561618,3.91349456,188.82,188.79,0.03]
[1755391561820,37.50887666,188.84,188.81,2.07142079]
[1755391562021,3.91263854,188.83,188.82,2.07142079]
[1755391562223,3.91263854,188.83,188.79,0.03]
[1755391562443,3.91263854,188.82,188.79,0.03]
[1755391562641,36.98,188.84,188.81,3.24148175]
[1755391562848,36.98,188.84,188.83,3.24148175]
[1755391563045,40.89672585,188.84,188.83,3.24148175]
[1755391563247,3.91672585,188.84,188.83,3.24148175]
[1755391563656,0.06,188.85,188.83,3.24148175]
[1755391563962,0.06,188.85,188.84,3.24148175]
[1755391566432,0.06,188.85,188.83,3.24148175]
[1755391566629,0.06,188.85,188.81,3.24148175]
[1755391566829,4.68427729,188.85,188.81,3.24148175]
[1755391567030,0.52887666,188.84,188.81,3.24148175]
[1755391567223,0.52887666,188.84,188.8,3.24148175]
[1755391567445,0.52887666,188.84,188.81,3.24148175]
[1755391568148,5.82453131,188.84,188.81,3.24148175]
[1755391568352,6.53453131,188.84,188.8,3.24148175]
[1755391568660,3.9135227,188.83,188.8,3.24148175]
[1755391569651,9.20940489,188.83,188.79,0.03]
[1755391569954,5.15184066,188.82,188.79,0.03]
[1755391570130,1.23887666,188.82,188.79,0.03]
[1755391570330,3.91319134,188.81,188.79,0.03]
[1755391571149,0.52887666,188.82,188.79,0.03]
[1755391571459,3.91320191,188.81,188.79,0.03]
[1755391572559,9.20958688,188.81,188.79,0.03]
[1755391572758,5.29638497,188.81,188.79,0.03]
[1755391573446,6.00638497,188.81,188.79,0.03]
[1755391573641,0.06,188.82,188.8,3.24148175]
[1755391573939,0.06,188.82,188.81,3.24148175]
[1755391574140,3.58266781,188.82,188.81,3.24148175]
[1755391574557,0.06,188.82,188.81,3.24148175]
[1755391575043,3.58266781,188.82,188.81,3.24148175]
[1755391575243,0.06,188.82,188.81,3.24148175]
[1755391575642,3.58266781,188.82,188.81,3.24148175]
[1755391575827,0.06,188.82,188.81,3.24148175]
[1755391578237,8.7142181,188.82,188.79,83.17148175]
[1755391578573,0.69,188.81,188.79,83.17148175]
[1755391578738,0.69,188.81,188.79,79.93]
[1755391579140,5.9863561,188.81,188.79,79.93]
[1755391580247,8.65434021,188.8,188.79,0.03]
[1755391581052,13.95095037,188.8,188.79,0.03]
[1755391588255,17.19307038,188.8,188.79,0.03]
[1755391590852,13.95158863,188.8,188.79,0.03]
[1755391591574,13.95133534,188.8,188.79,0.03]
[1755391594480,17.19281709,188.8,188.79,0.03]
[1755391600274,17.2004157,188.8,188.79,0.03]
[1755391602062,32.30663127,188.8,188.79,0.03]
[1755391604991,58.30663127,188.8,188.79,0.03]
[1755391605153,32.30663127,188.8,188.79,0.03]
[1755391605881,36.70965418,188.8,188.79,0.03]
[1755391608661,36.76965418,188.8,188.79,0.03]
[1755391609076,58.36663127,188.8,188.79,0.03]
[1755391610595,39.32893395,188.8,188.79,0.03]
[1755391611306,34.03232379,188.8,188.79,3.27148175]
[1755391611671,34.03232379,188.8,188.79,0.03]
[1755391612781,39.32893395,188.8,188.79,0.03]
[1755391613189,40.00893395,188.8,188.79,0.03]
[1755391613558,39.32893395,188.8,188.79,0.03]
[1755391617165,40.00893395,188.8,188.79,0.03]
[1755391619261,43.2504157,188.8,188.79,0.03]
[1755391619867,58.35663127,188.8,188.79,0.03]
[1755391620273,62.75965418,188.8,188.79,0.03]
[1755391620771,62.76704421,188.8,188.79,0.03]
[1755391621574,36.76704421,188.8,188.79,0.03]
[1755391621770,41.10621557,188.78,188.77,0.03]
[1755391621971,88.77853448,188.78,188.77,0.03]
[1755391622271,89.98741114,188.78,188.77,0.03]
[1755391622490,89.98896165,188.78,188.77,0.03]
[1755391622977,95.28613296,188.78,188.77,0.03]
[1755391623292,99.70633295,188.78,188.77,0.03]
[1755391628497,99.70685872,188.78,188.77,0.03]
[1755391632503,95.78537697,188.78,188.77,0.03]
[1755391632696,99.02685872,188.78,188.77,0.03]
[1755391632872,99.70685872,188.78,188.77,0.03]
[1755391636705,98.54215405,188.78,188.77,0.03]
[1755391639007,94.12195406,188.78,188.77,0.03]
[1755391640022,15.10621557,188.77,188.75,0.03]
[1755391640325,88.12478275,188.76,188.75,0.03]
[1755391640621,88.82478275,188.76,188.75,0.03]
[1755391641135,94.12251532,188.76,188.75,0.03]
[1755391641591,76.23952267,188.76,188.75,0.03]
[1755391647395,76.93952267,188.76,188.75,0.03]
[1755391648995,76.93932869,188.76,188.75,0.03]
[1755391651392,94.12232134,188.76,188.75,0.03]
[1755391652099,98.54389748,188.76,188.75,0.03]
[1755391660924,98.54357298,188.76,188.75,0.03]
[1755391663132,96.4667959,188.76,188.75,0.03]
[1755391663332,95.7667959,188.76,188.75,0.03]
[1755391663718,76.23900419,188.76,188.75,0.03]
[1755391664914,76.95900419,188.76,188.75,0.03]
[1755391665325,83.45735741,188.76,188.75,0.03]
[1755391666140,81.38058033,188.76,188.75,0.03]
[1755391666322,83.45735741,188.76,188.75,0.03]
[1755391667540,70.94127162,188.76,188.75,0.03]
[1755391670233,33.45239496,188.76,188.75,2.10677708]
[1755391670441,44.41239496,188.76,188.75,2.10677708]
[1755391671037,44.41239496,188.76,188.75,0.03]
[1755391671240,40.48220192,188.76,188.75,0.03]
[1755391673434,44.41534507,188.76,188.75,0.03]
[1755391677043,49.71307764,188.76,188.75,0.03]
[1755391677414,50.43307764,188.76,188.75,0.03]
[1755391677728,49.71307764,188.76,188.75,0.03]
[1755391677928,44.41534507,188.76,188.75,0.03]
[1755391678134,40.48220192,188.76,188.75,2.10677708]
[1755391678660,46.49993449,188.76,188.75,0.03]
[1755391679337,50.43088675,188.76,188.75,0.03]
[1755391681116,50.43090868,188.76,188.75,0.03]
[1755391681332,44.41317611,188.76,188.75,0.03]
[1755391682328,45.13317611,188.76,188.75,0.03]
[1755391683231,50.43090868,188.76,188.75,0.03]
[1755391685147,52.50768576,188.76,188.75,0.03]
[1755391686152,50.43090868,188.76,188.75,0.03]
[1755391687225,52.50768576,188.76,188.75,0.03]
[1755391687943,50.43090868,188.76,188.75,0.03]
[1755391688655,50.44641397,188.76,188.75,0.03]
[1755391690748,52.52319105,188.76,188.75,0.03]
[1755391692723,50.44641397,188.76,188.75,0.03]
[1755391694636,52.52319105,188.76,188.75,0.03]
[1755391694957,48.59221686,188.76,188.75,0.03]
[1755391695126,52.52202274,188.76,188.75,0.03]
[1755391695326,52.5217198,188.76,188.75,0.03]
[1755391700834,52.5222749,188.76,188.75,0.03]
[1755391701458,72.05062449,188.76,188.75,0.03]
[1755391701635,15.10621557,188.75,188.73,0.2]
[1755391701837,73.01341899,188.74,188.73,0.2]
[1755391702234,88.78963456,188.74,188.73,0.2]
[1755391703843,94.0879285,188.74,188.73,0.2]
[1755391704665,92.01115142,188.74,188.73,0.2]
[1755391704881,94.0879285,188.74,188.73,0.2]
[1755391709465,90.15787046,188.74,188.73,0.2]
[1755391709672,94.08115712,188.74,188.73,0.2]
[1755391712668,94.07835455,188.74,188.73,0.2]
[1755391713369,98.48836122,188.74,188.73,0.2]
[1755391714370,94.07835455,188.74,188.73,0.2]
[1755391714570,96.20245555,188.74,188.73,0.2]
[1755391716645,96.20245555,188.74,188.71,0.03]
[1755391716847,43.18299265,188.72,188.71,0.03]
[1755391717071,88.10719092,188.72,188.71,0.03]
[1755391717252,88.77719092,188.72,188.71,0.03]
[1755391717970,94.07604636,188.72,188.71,0.03]
[1755391718357,94.075857,188.72,188.71,0.03]
[1755391721164,94.07425581,188.72,188.71,0.03]
[1755391721478,98.48193185,188.72,188.71,0.03]
[1755391724081,98.48145069,188.72,188.71,0.03]
[1755391726988,98.48157595,188.72,188.71,0.03]
[1755391727496,98.48184586,188.72,188.71,0.03]
[1755391733997,94.07416982,188.72,188.71,0.03]
[1755391734675,26.0,188.7,188.69,0.03]
[1755391734997,77.38595698,188.7,188.69,0.03]
[1755391735187,78.05595698,188.7,188.69,0.03]
[1755391735387,36.72909881,188.7,188.69,0.03]
[1755391735595,75.77365081,188.7,188.69,0.03]
[1755391735774,73.69687373,188.7,188.69,0.03]
[1755391735974,75.77365081,188.7,188.69,0.03]
[1755391736681,81.07306787,188.7,188.69,0.03]
[1755391737297,96.17928344,188.7,188.69,0.03]
[1755391741275,56.51250636,188.7,188.69,0.03]
[1755391741508,33.98232173,188.7,188.69,0.03]
[1755391741710,7.45344507,188.7,188.69,2.10677708]
[1755391742009,7.45344507,188.7,188.69,0.03]
[1755391742184,7.45344507,188.7,188.69,2.10677708]
[1755391742383,7.45344507,188.7,188.69,0.03]
[1755391742575,7.45344507,188.7,188.69,2.10677708]
[1755391743214,3.53770721,188.7,188.69,7.40647499]
[1755391743731,3.52780845,188.7,188.69,7.40647499]
[1755391744502,3.52780845,188.7,188.69,2.10677708]
[1755391745209,3.52780845,188.7,188.69,0.03]
[1755391745408,7.44996119,188.7,188.69,0.03]
[1755391745788,13.27825491,188.7,188.69,0.03]
[1755391745983,13.94825491,188.7,188.69,0.03]
[1755391746182,18.35499305,188.7,188.69,0.03]
[1755391746501,44.35499305,188.7,188.69,0.03]
[1755391746812,46.43177013,188.7,188.69,0.03]
[1755391748616,42.02503199,188.7,188.69,0.03]
[1755391749686,42.02503199,188.7,188.67,0.03]
[1755391749889,54.75331183,188.69,188.67,0.03]
[1755391750097,7.97883785,188.68,188.67,0.03]
[1755391751107,13.27881665,188.68,188.67,0.03]
[1755391752516,13.27999207,188.68,188.67,0.03]
[1755391753142,17.69337441,188.68,188.67,0.03]
[1755391753430,13.27999207,188.68,188.67,0.03]
[1755391755011,35.58636706,188.68,188.67,0.03]
[1755391755407,31.17298472,188.68,188.67,0.03]
[1755391757015,29.09620764,188.68,188.67,0.03]
[1755391757221,31.17298472,188.68,188.67,0.03]
[1755391758235,33.29764872,188.68,188.67,0.03]
[1755391759136,31.17298472,188.68,188.67,0.03]
[1755391760426,33.29764872,188.68,188.67,0.03]
[1755391760628,31.17298472,188.68,188.67,0.03]
[1755391762328,35.58420625,188.68,188.67,0.03]
[1755391763764,37.70887125,188.68,188.67,0.03]
[1755391765630,20.40667806,188.67,188.65,0.03]
[1755391765830,46.97679035,188.66,188.65,0.03]
[1755391766859,52.987331,188.66,188.65,0.03]
[1755391771965,47.68679035,188.66,188.65,0.03]
[1755391772964,44.90001327,188.66,188.65,0.03]
[1755391773156,46.97679035,188.66,188.65,0.03]
[1755391773539,47.68679035,188.66,188.65,0.03]
[1755391778178,44.90001327,188.66,188.65,0.03]
[1755391778968,45.61001327,188.66,188.65,0.03]
[1755391780377,50.91055392,188.66,188.65,0.03]
[1755391781576,46.98722576,188.66,188.65,0.03]
[1755391781748,50.90568954,188.66,188.65,0.03]
[1755391783082,52.98246662,188.66,188.65,0.03]
[1755391784782,52.981814,188.66,188.65,0.03]
[1755391785770,72.49823951,188.66,188.65,0.03]
[1755391788360,68.08802957,188.66,188.65,0.03]
[1755391789180,68.08802957,188.66,188.63,0.03]
[1755391789359,13.93105411,188.65,188.63,0.03]
[1755391789561,50.17559889,188.64,188.63,0.03]
[1755391789775,50.83559889,188.64,188.63,0.03]
[1755391790277,55.24425631,188.64,188.63,0.03]
[1755391790673,57.32103339,188.64,188.63,0.03]
[1755391793265,68.01859154,188.64,188.63,0.03]
[1755391793491,94.01859154,188.64,188.63,0.03]